fUST/lending_fUST_20241030
["ID","MTS","AMOUNT","RATE_DAILY","PERIOD"]
[341018841,1730269841888,-502.22989382,0.00027397,5]
[341018842,1730269841898,-512.75679098,0.00027397,5]
[341018843,1730269841907,-501.79961608,0.00027397,5]
[341018844,1730269841916,-503.54916501,0.00027397,5]
[341018845,1730269841925,-505.54964732,0.00027397,5]
[341018846,1730269841934,-500.0,0.00027397,5]
[341018847,1730269841943,-501.35652383,0.00027397,5]
[341018848,1730269841952,-504.57147058,0.00027397,5]
[341018849,1730269841961,-619.61232805,0.00027397,5]
[341018850,1730269841970,-500.0,0.00027397,5]
[341018851,1730269841979,-501.33795304,0.00027397,5]
[341018852,1730269841989,-504.75905782,0.00027397,5]
[341018853,1730269841998,-506.29956401,0.00027397,5]
[341018854,1730269842008,-502.57902808,0.00027397,5]
[341018855,1730269842018,-508.01088676,0.00027397,5]
[341018856,1730269842027,-513.78810971,0.00027397,5]
[341018857,1730269842037,-394.02215402,0.00027397,5]
[341018858,1730269842046,-507.88652029,0.00027397,5]
[341018859,1730269842056,-507.89716125,0.00027397,5]
[341018860,1730269842154,-560.89110589,0.00027397,5]
[341018861,1730269842165,-490.0,0.00027397,5]
[341018862,1730269842176,-511.44616111,0.00027397,5]
[341018863,1730269842185,-502.32035337,0.00027397,5]
[341018864,1730269842195,-500.93770371,0.00027397,5]
[341018865,1730269842204,-502.81550035,0.00027397,5]
[341018866,1730269842213,-500.0,0.00027397,5]
[341018867,1730269842222,-500.0,0.00027397,5]
[341018868,1730269842231,-500.0,0.00027397,5]
[341018869,1730269842241,-500.0,0.00027397,5]
[341018870,1730269842251,-506.84423603,0.00027397,5]
[341018871,1730269842260,-500.0,0.00027397,5]
[341018872,1730269842269,-505.50678683,0.00027397,5]
[341018873,1730269842279,-501.24364655,0.00027397,5]
[341018874,1730269842288,-500.0,0.00027397,5]
[341018875,1730269842298,-501.06304233,0.00027397,5]
[341018876,1730269842307,-584.33542289,0.00027397,5]
[341018877,1730269842316,-500.0,0.00027397,5]
[341018878,1730269842325,-500.0,0.00027397,5]
[341018879,1730269842335,-540.76003077,0.00027397,5]
[341018880,1730269842344,-519.5094501,0.00027397,5]
[341018881,1730269842353,-500.0,0.00027397,3]
[341018882,1730269842362,-505.27285849,0.00027397,5]
[341018883,1730269842372,-500.0,0.00027397,5]
[341018884,1730269842381,-501.79795535,0.00027397,5]
[341018885,1730269842391,-501.90866618,0.00027397,5]
[341018886,1730269842400,-500.0,0.00027397,5]
[341018887,1730269842409,-500.0,0.00027397,5]
[341018888,1730269842418,-502.79034758,0.00027397,5]
[341018889,1730269842427,-500.0,0.00027397,5]
[341018890,1730269842436,-500.0,0.00027397,5]
[341018891,1730269842446,-509.14650206,0.00027397,5]
[341018892,1730269842456,-500.0,0.00027397,5]
[341018893,1730269842465,-512.22946599,0.00027397,5]
[341018894,1730269842474,-502.0464914,0.00027397,5]
[341018895,1730269842483,-503.49343307,0.00027397,5]
[341018896,1730269842494,-500.0,0.00027397,5]
[341018897,1730269842505,-505.29581949,0.00027397,5]
[341018898,1730269842516,-505.73483434,0.00027397,5]
[341018899,1730269842527,-509.12462413,0.00027397,5]
[341018900,1730269842536,-503.26792661,0.00027397,5]
[341018901,1730269842547,-313.18683091,0.00027397,5]
[341018902,1730269842556,-507.5818957,0.00027397,5]
[341018903,1730269842565,-503.14962206,0.00027397,5]
[341018904,1730269842574,-539.47867813,0.00027397,5]
[341018905,1730269842583,-501.75001253,0.00027397,5]
[341018906,1730269842593,-501.39379595,0.00027397,5]
[341018907,1730269842602,-503.52199589,0.00027397,5]
[341018908,1730269842611,-502.57821754,0.00027397,5]
[341018909,1730269842620,-501.33608208,0.00027397,5]
[341018910,1730269842630,-502.67130652,0.00027397,5]
[341018911,1730269842639,-511.83095407,0.00027397,5]
[341018912,1730269842648,-502.87202434,0.00027397,5]
[341018913,1730269842658,-383.03198611,0.00027397,5]
[341018914,1730269842667,-505.87717339,0.00027397,5]
[341018915,1730269842676,-502.95297362,0.00027397,5]
[341018916,1730269842685,-500.0,0.00027397,5]
[341018917,1730269842694,-501.92948185,0.00027397,5]
[341018918,1730269842704,-508.99744992,0.00027397,5]
[341018919,1730269842713,-497.19553212,0.00027397,5]
[341018920,1730269842722,-503.09081955,0.00027397,5]
[341018921,1730269842731,-514.92983022,0.00027397,5]
[341018923,1730269842742,-502.0422249,0.00027397,5]
[341018924,1730269842752,-502.86374645,0.00027397,5]
[341018925,1730269842762,-524.86310093,0.00027397,5]
[341018926,1730269842771,-503.11609403,0.00027397,5]
[341018927,1730269842780,-506.02142638,0.00027397,5]
[341018928,1730269842790,-503.24803732,0.00027397,5]
[341018929,1730269842799,-515.66879232,0.00027397,5]
[341018930,1730269842808,-504.20397697,0.00027397,5]
[341018933,1730269842818,-504.83424096,0.00027397,5]
[341018934,1730269842827,-502.25763207,0.00027397,5]
[341018935,1730269842836,-515.11299824,0.00027397,5]
[341018936,1730269842845,-500.0,0.00027397,5]
[341018937,1730269842855,-502.13525661,0.00027397,5]
[341018938,1730269842864,-505.52886139,0.00027397,5]
[341018939,1730269842874,-504.51276065,0.00027397,5]
[341018941,1730269842883,-517.2000995,0.00027397,5]
[341018942,1730269842892,-500.0,0.00027397,5]
[341018943,1730269842902,-500.0,0.00027397,5]
[341018944,1730269842911,-504.01734885,0.00027397,5]
[341018945,1730269842920,-222.36987769,0.00027397,5]
[341018946,1730269842929,-321.56490249,0.00027397,5]
[341018947,1730269842939,-518.17039791,0.00027397,5]
[341018948,1730269842948,-511.50719469,0.00027397,5]
[341018949,1730269842957,-305.1765523,0.00027397,5]
[341018950,1730269842967,-508.66673556,0.00027397,5]
[341018952,1730269842976,-505.83486399,0.00027397,5]
[341018954,1730269842986,-500.0,0.00027397,5]
[341018955,1730269842996,-505.97643654,0.00027397,5]
[341018956,1730269843005,-500.0,0.00027397,5]
[341018957,1730269843015,-504.01010869,0.00027397,5]
[341018958,1730269843024,-505.40638849,0.00027397,5]
[341018959,1730269843033,-500.0,0.00027397,5]
[341018960,1730269843042,-500.0,0.00027397,5]
[341018961,1730269843052,-506.46132243,0.00027397,5]
[341018962,1730269843061,-500.0,0.00027397,5]
[341018963,1730269843071,-520.74730652,0.00027397,5]
[341018964,1730269843080,-500.0,0.00027397,5]
[341018965,1730269843089,-501.76089387,0.00027397,5]
[341018966,1730269843098,-500.0,0.00027397,5]
[341018967,1730269843108,-502.11398462,0.00027397,5]
[341018968,1730269843118,-534.68624163,0.00027397,5]
[341018969,1730269843128,-512.22652083,0.00027397,5]
[341018970,1730269843138,-502.19959465,0.00027397,5]
[341018971,1730269843148,-500.0,0.00027397,5]
[341018972,1730269843159,-504.44340581,0.00027397,5]
[341018973,1730269843168,-505.84222826,0.00027397,5]
[341018974,1730269843178,-508.44392548,0.00027397,5]
[341018975,1730269843187,-508.82076321,0.00027397,5]
[341018977,1730269843196,-500.0,0.00027397,5]
[341018979,1730269843206,-540.83122671,0.00027397,5]
[341018981,1730269843215,-500.0,0.00027397,5]
[341018983,1730269843224,-500.0,0.00027397,5]
[341018984,1730269843234,-500.0,0.00027397,5]
[341018985,1730269843245,-502.55959478,0.00027397,5]
[341018986,1730269843260,-500.0,0.00027397,5]
[341018987,1730269843269,-507.27887672,0.00027397,5]
[341018988,1730269843278,-500.0,0.00027397,5]
[341018989,1730269843287,-537.5821125,0.00027397,5]
[341018990,1730269843298,-500.0,0.00027397,5]
[341018991,1730269843308,-500.0,0.00027397,5]
[341018992,1730269843317,-506.5956154,0.00027397,5]
[341018993,1730269843328,-538.74873124,0.00027397,5]
[341018994,1730269843337,-551.0520169,0.00027397,5]
[341018995,1730269843347,-500.67467853,0.00027397,5]
[341018996,1730269843356,-505.14883879,0.00027397,5]
[341018997,1730269843365,-591.66881907,0.00027397,5]
[341018998,1730269843375,-503.24776099,0.00027397,5]
[341018999,1730269843384,-508.8151113,0.00027397,5]
[341019000,1730269843393,-1534.31766503,0.00027397,5]
[341019001,1730269843403,-500.0,0.00027397,5]
[341019002,1730269843412,-500.0,0.00027397,5]
[341019004,1730269843421,-500.0,0.00027397,5]
[341019005,1730269843431,-502.73804572,0.00027397,5]
[341019006,1730269843440,-503.39696246,0.00027397,5]
[341019008,1730269843449,-500.0,0.00027397,5]
[341019009,1730269843458,-525.84882018,0.00027397,5]
[341019010,1730269843467,-500.0,0.00027397,5]
[341019011,1730269843476,-500.0,0.00027397,5]
[341019012,1730269843486,-412.65371048,0.00027397,5]
[341019013,1730269843495,-584.3617352,0.00027397,5]
[341019014,1730269843504,-601.01748585,0.00027397,5]
[341019015,1730269843513,-500.0,0.00027397,5]
[341019016,1730269843523,-503.02156186,0.00027397,5]
[341019017,1730269843533,-178.99620827,0.00027397,5]
[341019018,1730269843545,-501.41012128,0.00027397,5]
[341019019,1730269843554,-501.97811252,0.00027397,5]
[341019020,1730269843563,-510.50772973,0.00027397,5]
[341019021,1730269843573,-500.0,0.00027397,5]
[341019022,1730269843582,-506.38128829,0.00027397,5]
[341019023,1730269843591,-500.0,0.00027397,5]
[341019024,1730269843601,-428.0,0.00027658,2]
[341019025,1730269843610,-500.0,0.00027671,5]
[341019026,1730269843619,-500.0,0.00027671,5]
[341019027,1730269843628,-257.87107349,0.00027671,5]
[341019028,1730269843638,-571.33229746,0.00027671,5]
[341019029,1730269843647,-611.91341573,0.00027671,5]
[341019030,1730269843657,-507.56524668,0.00027671,5]
[341019031,1730269843666,-177.41,0.00027671,5]
[341019032,1730269843675,-500.0,0.00027671,5]
[341019033,1730269843685,-500.0,0.00027671,5]
[341019034,1730269843695,-507.40151916,0.00027671,5]
[341019035,1730269843706,-588.57158239,0.00027671,5]
[341019036,1730269843716,-508.75666676,0.00027671,5]
[341019037,1730269843726,-502.93632742,0.00027671,5]
[341019038,1730269843736,-500.0,0.00027671,5]
[341019039,1730269843747,-244.31666148,0.00027671,5]
[341019040,1730269843758,-500.0,0.00027671,3]
[341019041,1730269843767,-500.0,0.00027671,5]
[341019042,1730269843777,-165.48837566,0.00027671,5]
[341019043,1730269843786,-500.0,0.00027671,5]
[341019044,1730269843795,-264.64983125,0.00027671,5]
[341019045,1730269843806,-528.16891602,0.00027671,5]
[341019046,1730269843816,-500.0,0.00027671,5]
[341019047,1730269843825,-500.0,0.00027671,5]
[341019048,1730269843835,-311.249346,0.00027671,5]
[341019049,1730269843844,-379.43076511,0.00027671,5]
[341019050,1730269843854,-500.0,0.00027671,5]
[341019051,1730269843864,-255.7574218,0.00027671,5]
[341019052,1730269843874,-491.94604071,0.00027671,5]
[341019053,1730269843884,-500.0,0.00027671,5]
[341019054,1730269843893,-500.0,0.00027671,5]
[341019055,1730269843902,-500.0,0.00027671,5]
[341019056,1730269843911,-500.0,0.00027671,5]
[341019057,1730269843921,-165.24,0.00027671,5]
[341019058,1730269843930,-500.0,0.00027671,5]
[341019059,1730269843939,-500.0,0.00027671,5]
[341019060,1730269843948,-505.8193952,0.00027671,5]
[341019061,1730269843958,-508.22079649,0.00027671,5]
[341019062,1730269843968,-612.90667828,0.00027671,5]
[341019063,1730269843978,-500.0,0.00027671,5]
[341019064,1730269843987,-557.31,0.00027671,5]
[341019065,1730269843998,-500.0,0.00027671,5]
[341019066,1730269844007,-500.0,0.00027671,5]
[341019067,1730269844016,-503.56654258,0.00027671,5]
[341019068,1730269844026,-500.0,0.00027671,5]
[341019069,1730269844035,-511.08606956,0.00027671,5]
[341019070,1730269844046,-500.0,0.00027671,5]
[341019071,1730269844055,-507.53304671,0.00027671,5]
[341019072,1730269844064,-561.45111751,0.00027671,5]
[341019073,1730269844073,-500.0,0.00027671,5]
[341019074,1730269844083,-500.0,0.00027945,5]
[341019075,1730269844092,-500.0,0.00027945,5]
[341019076,1730269844102,-325.50132498,0.00027945,5]
[341019077,1730269844111,-500.0,0.00027945,5]
[341019078,1730269844120,-500.0,0.00027945,5]
[341019079,1730269844129,-607.610796,0.00027945,3]
[341019080,1730269844139,-500.0,0.00027945,5]
[341019081,1730269844148,-500.0,0.00027945,5]
[341019082,1730269844158,-500.0,0.00027945,5]
[341019083,1730269844168,-500.0,0.00027945,5]
[341019084,1730269844178,-365.37957421,0.00027945,5]
[341019085,1730269844187,-508.37397178,0.00027945,5]
[341019086,1730269844197,-625.5853539,0.00027945,5]
[341019087,1730269844206,-500.0,0.00027945,5]
[341019088,1730269844216,-570.04599126,0.00027945,5]
[341019089,1730269844225,-506.5769008,0.00027945,5]
[341019090,1730269844235,-500.0,0.00027945,5]
[341019091,1730269844244,-581.42546595,0.00027945,5]
[341019092,1730269844253,-500.0,0.00027945,5]
[341019093,1730269844263,-343.13,0.00027945,5]
[341019094,1730269844272,-196.89402976,0.00027945,5]
[341019095,1730269844282,-460.95051523,0.00027945,5]
[341019096,1730269844291,-263.16656909,0.00027985,2]
[341019097,1730269844301,-150.3,0.00027994,2]
[341019098,1730269844310,-190.046,0.00027994,2]
[341019099,1730269844319,-175.324,0.00028048,18]
[341019100,1730269844328,-500.0,0.00028219,5]
[341019101,1730269844338,-500.0,0.00028219,5]
[341019102,1730269844347,-500.0,0.00028219,5]
[341019103,1730269844356,-500.0,0.00028219,5]
[341019104,1730269844366,-500.0,0.00028219,5]
[341019105,1730269844375,-601.68484834,0.00028219,5]
[341019106,1730269844384,-561.79571726,0.00028219,5]
[341019107,1730269844393,-471.97527861,0.00028219,5]
[341019108,1730269844402,-500.0,0.00028219,5]
[341019109,1730269844411,-500.0,0.00028219,5]
[341019110,1730269844420,-500.0,0.00028493,5]
[341019111,1730269844429,-500.0,0.00028493,5]
[341019112,1730269844438,-500.0,0.00028493,5]
[341019113,1730269844447,-323.94546559,0.00028493,5]
[341019114,1730269844457,-500.0,0.00028493,5]
[341019115,1730269844468,-500.0,0.00028493,5]
[341019116,1730269844477,-261.78888833,0.00028493,5]
[341019117,1730269844487,-500.0,0.00028767,5]
[341019118,1730269844499,-506.15379447,0.00028767,5]
[341019119,1730269844508,-432.06,0.00028767,5]
[341019120,1730269844517,-500.0,0.00028767,5]
[341019121,1730269844527,-500.0,0.00028767,5]
[341019122,1730269844536,-500.0,0.00029041,5]
[341019123,1730269844546,-500.0,0.00029041,5]
[341019124,1730269844556,-500.0,0.00029041,5]
[341019125,1730269844565,-1152.0,0.0002912,2]
[341019126,1730269844575,-500.0,0.00029315,5]
[341019127,1730269844584,-500.0,0.00029315,5]
[341019128,1730269844594,-500.0,0.00029315,5]
[341019129,1730269844686,-500.0,0.00029589,5]
[341019130,1730269844697,-504.98,0.00029589,5]
[341019131,1730269844706,-202.13,0.00029589,5]
[341019132,1730269844715,-500.0,0.00029863,5]
[341019133,1730269844725,-500.0,0.0003,2]
[341019134,1730269844734,-500.0,0.0003,2]
[341019135,1730269844744,-500.0,0.0003,2]
[341019136,1730269844754,-1212.00001212,0.0003,3]
[341019137,1730269844763,-150.0,0.00030111,2]
[341019138,1730269844773,-528.0,0.00030111,2]
[341019139,1730269844783,-521.51877844,0.00030136,5]
[341019140,1730269844792,-1000.0,0.00030225,2]
[341019141,1730269844802,-503.57900252,0.00030266,2]
[341019142,1730269844811,-1000.0,0.00030266,5]
[341019143,1730269844821,-1000.0,0.00030266,5]
[341019144,1730269844831,-1000.0,0.00030311,5]
[341019145,1730269844840,-1000.0,0.00030311,5]
[341019146,1730269844851,-362.50874489,0.00030343,5]
[341019147,1730269844861,-502.37091391,0.00030343,5]
[341019148,1730269844871,-503.94859971,0.00030518,5]
[341019149,1730269844880,-150.0,0.00030994,2]
[341019150,1730269844889,-263.16656909,0.00031069,2]
[341019151,1730269844899,-171.462642,0.00031546,2]
[341019152,1730269844910,-1613.0,0.00031684,2]
[341019153,1730269844920,-4908.76,0.0003179,10]
[341019154,1730269844930,-1334.45474234,0.000318,3]
[341019155,1730269844940,-500.0,0.00032876,2]
[341019156,1730269844950,-170.33628929,0.00032877,2]
[341019157,1730269844960,-445.210365,0.00032877,120]
[341019158,1730269844970,-528.0,0.00033111,2]
[341019159,1730269844979,-500.0,0.00033225,5]
[341019160,1730269844989,-500.0,0.00033225,5]
[341019161,1730269844998,-500.0,0.000334,5]
[341019162,1730269845008,-501.07435603,0.000334,5]
[341019163,1730269845018,-500.0,0.000334,5]
[341019164,1730269845027,-500.0,0.00033819,12]
[341019165,1730269845036,-816.52,0.00034,2]
[341019166,1730269845045,-263.16656909,0.00034152,2]
[341019167,1730269845055,-150.0,0.00034199,14]
[341019168,1730269845064,-150.0,0.00034199,14]
[341019169,1730269845073,-200.0,0.00034199,14]
[341019170,1730269845083,-15298.60984669,0.00034199,10]
[341019171,1730269845093,-2754.79116399,0.00034199,7]
[341019172,1730269845103,-13585.7849387,0.00034199,5]
[341019173,1730269845113,-206209.13125738,0.00034199,15]
[341019174,1730269845122,-1951.0,0.00034268,30]
[341019175,1730269845131,-508.02340623,0.00034273,5]
[341019176,1730269845141,-1132.0,0.000343,30]
[341019177,1730269845151,-1368.34,0.000343,30]
[341019178,1730269845161,-214.84,0.000343,30]
[341019179,1730269845171,-206.07,0.000343,30]
[341019180,1730269845180,-2258.0,0.00034472,2]
[341019181,1730269845190,-165.50744148,0.0003454,9]
[341019182,1730269845199,-500.0,0.00035,120]
[341019183,1730269845209,-1566.31,0.00035,30]
[341019184,1730269845219,-165.966,0.0003555,120]
[341019185,1730269845230,-500.0,0.00035616,7]
[341019186,1730269845239,-1000.0,0.00035616,120]
[341019187,1730269845251,-160.0,0.00035616,5]
[341019188,1730269845261,-1000.0,0.0003589,120]
[341019189,1730269845270,-1000.0,0.00036164,120]
[341019190,1730269845281,-2449.56,0.000362,7]
[341019191,1730269845290,-1000.0,0.00036438,120]
[341019192,1730269845300,-1000.0,0.00036712,120]
[341019193,1730269845310,-1132.0,0.000368,30]
[341019194,1730269845320,-1368.34,0.000368,30]
[341019195,1730269845331,-214.84,0.000368,30]
[341019196,1730269845341,-206.07,0.000368,30]
[341019197,1730269845350,-588.50390913,0.00036986,60]
[341019198,1730269845361,-1000.0,0.00036986,120]
[341019199,1730269845370,-4647.42491499,0.00037,120]
[341019200,1730269845396,-8963.5426041,0.00037,120]
[341019201,1730269845406,-203.8756344,0.00037205,2]
[341019202,1730269845416,-153.0,0.00037205,2]
[341019203,1730269845426,-153.0,0.00037205,2]
[341019204,1730269845436,-1000.0,0.0003726,120]
[341019205,1730269845445,-3162.0,0.00037507,2]
[341019206,1730269845455,-1000.0,0.00037534,120]
[341019207,1730269845464,-1000.0,0.00037808,120]
[341019208,1730269845474,-941.42248374,0.00038082,120]
[341019209,1730269845484,-500.0,0.00038356,12]
[341019210,1730269845496,-445.210365,0.00038356,120]
[341019211,1730269845505,-610.47170581,0.00038374,2]
[341019212,1730269845515,-1000.0,0.00038704,5]
[341019213,1730269845524,-1000.0,0.00038704,5]
[341019214,1730269845534,-1000.0,0.00038879,5]
[341019215,1730269845544,-1000.0,0.00038879,5]
[341019216,1730269845554,-484.0,0.00038888,120]
[341019217,1730269845563,-220.0,0.00039,120]
[341019218,1730269845573,-4896.8151351,0.00039,30]
[341019219,1730269845582,-1000.0,0.00039,120]
[341019220,1730269845593,-165.963,0.0003911,120]
[341019221,1730269845603,-2872.96661641,0.000392,120]
[341019222,1730269845612,-153.0,0.00039534,2]
[341019223,1730269845622,-153.0,0.00039534,2]
[341019224,1730269845632,-153.0,0.00039534,2]
[341019225,1730269845643,-153.0,0.00039534,2]
[341019226,1730269845654,-153.0,0.00039534,2]
[341019227,1730269845664,-23534.68448896,0.000398,2]
[341019300,1730269975518,161.039887,0.00013973,2]
[341019303,1730270556604,185.145059,0.00013973,2]
[341020068,1730271038727,-150.0,0.00024658,2]
[341020069,1730271038742,-203.528341,0.00026232,2]
[341020070,1730271038752,-161.039887,0.00026274,2]
[341020071,1730271038761,-203.528341,0.00026915,2]
[341020072,1730271038771,-765.36833128,0.00027297,2]
[341020073,1730271038781,-300.0,0.00027395,2]
[341020074,1730271038791,-500.0,0.00027396,2]
[341020075,1730271038800,-500.0,0.00027396,2]
[341020076,1730271038810,-275.58418924,0.00027396,2]
[341020077,1730271038820,-201.58964004,0.00027396,2]
[341020078,1730271038830,-500.0,0.00027396,2]
[341020079,1730271038839,-500.0,0.00027396,2]
[341020080,1730271038848,-540.38375164,0.00027396,2]
[341020081,1730271038858,-569.6969716,0.00027397,5]
[341020082,1730271038868,-500.0,0.00027397,5]
[341020083,1730271038877,-500.0,0.00027397,5]
[341020084,1730271038887,-500.0,0.00027397,5]
[341020085,1730271038896,-500.0,0.00027397,5]
[341020086,1730271038908,-500.0,0.00027397,5]
[341020087,1730271038918,-500.0,0.00027397,5]
[341020088,1730271038927,-500.0,0.00027397,5]
[341020089,1730271038936,-508.92495726,0.00027397,5]
[341020090,1730271038947,-515.19964632,0.00027397,5]
[341020091,1730271038957,-500.0,0.00027397,5]
[341020092,1730271038966,-500.0,0.00027397,5]
[341020093,1730271038976,-500.0,0.00027397,5]
[341020094,1730271038986,-428.66203082,0.00027397,5]
[341020095,1730271038996,-509.89980664,0.00027397,5]
[341020096,1730271039005,-500.0,0.00027397,5]
[341020097,1730271039014,-493.12594114,0.00027397,5]
[341020098,1730271039023,-500.0,0.00027397,5]
[341020099,1730271039033,-513.52036956,0.00027397,5]
[341020100,1730271039042,-523.27583958,0.00027397,5]
[341020101,1730271039052,-442.3784352,0.00027397,5]
[341020102,1730271039061,-284.92,0.00027397,5]
[341020103,1730271039070,-500.0,0.00027397,5]
[341020104,1730271039079,-500.0,0.00027397,5]
[341020105,1730271039088,-1182.74,0.00027397,3]
[341020106,1730271039098,-510.34607277,0.00027397,5]
[341020107,1730271039107,-511.36088514,0.00027397,5]
[341020108,1730271039116,-500.0,0.00027397,5]
[341020109,1730271039126,-500.0,0.00027397,5]
[341020110,1730271039135,-500.0,0.00027397,5]
[341020111,1730271039145,-417.16861151,0.00027397,5]
[341020112,1730271039156,-500.0,0.00027397,5]
[341020113,1730271039167,-500.0,0.00027397,5]
[341020114,1730271039178,-512.49214532,0.00027397,5]
[341020115,1730271039189,-531.82366844,0.00027397,5]
[341020116,1730271039199,-500.0,0.00027397,5]
[341020117,1730271039209,-500.0,0.00027397,5]
[341020118,1730271039218,-535.3839718,0.00027397,5]
[341020119,1730271039228,-500.0,0.00027397,5]
[341020120,1730271039238,-500.0,0.00027397,5]
[341020121,1730271039248,-500.0,0.00027397,5]
[341020122,1730271039258,-569.16,0.00027397,5]
[341020123,1730271039268,-500.0,0.00027397,5]
[341020124,1730271039278,-500.0,0.00027397,5]
[341020125,1730271039289,-500.0,0.00027397,5]
[341020126,1730271039299,-500.0,0.00027397,5]
[341020127,1730271039308,-500.0,0.00027397,5]
[341020128,1730271039318,-500.0,0.00027397,5]
[341020129,1730271039328,-500.0,0.00027397,5]
[341020130,1730271039338,-500.0,0.00027397,5]
[341020131,1730271039347,-500.0,0.00027397,5]
[341020132,1730271039361,-500.0,0.00027397,5]
[341020133,1730271039371,-517.69603842,0.00027397,5]
[341020134,1730271039380,-261.94766732,0.00027397,5]
[341020135,1730271039390,-540.51159342,0.00027397,5]
[341020136,1730271039400,-518.31134639,0.00027397,5]
[341020137,1730271039410,-500.0,0.00027397,5]
[341020138,1730271039420,-507.90605934,0.00027397,5]
[341020139,1730271039432,-500.0,0.00027397,5]
[341020140,1730271039442,-500.0,0.00027397,5]
[341020141,1730271039451,-500.0,0.00027397,5]
[341020142,1730271039461,-514.26982108,0.00027397,5]
[341020143,1730271039471,-510.06177208,0.00027397,5]
[341020144,1730271039480,-625.06530258,0.00027397,2]
[341020145,1730271039490,-381.01299386,0.00027397,5]
[341020146,1730271039501,-500.0,0.00027397,5]
[341020147,1730271039511,-500.0,0.00027397,5]
[341020148,1730271039520,-500.0,0.00027397,5]
[341020149,1730271039530,-500.0,0.00027397,5]
[341020150,1730271039539,-511.32996346,0.00027397,5]
[341020151,1730271039549,-203.528341,0.00027598,2]
[341020152,1730271039559,-518.91534089,0.00027671,2]
[341020153,1730271039568,-500.0,0.00027671,5]
[341020154,1730271039579,-515.31366744,0.00027671,5]
[341020155,1730271039589,-500.0,0.00027671,5]
[341020156,1730271039598,-513.27525972,0.00027671,5]
[341020157,1730271039608,-500.0,0.00027671,5]
[341020158,1730271039618,-1182.74,0.00027671,3]
[341020159,1730271039627,-500.0,0.00027671,5]
[341020160,1730271039637,-500.0,0.00027671,5]
[341020161,1730271039646,-516.94188423,0.00027671,5]
[341020162,1730271039656,-323.94546559,0.00027671,5]
[341020163,1730271039666,-500.0,0.00027671,5]
[341020164,1730271039679,-500.0,0.00027671,5]
[341020165,1730271039689,-500.0,0.00027671,5]
[341020166,1730271039698,-500.0,0.00027671,5]
[341020167,1730271039708,-500.0,0.00027671,5]
[341020168,1730271039717,-500.0,0.00027671,5]
[341020169,1730271039726,-500.0,0.00027671,5]
[341020170,1730271039736,-297.81,0.00027671,5]
[341020171,1730271039745,-605.58136022,0.00027671,5]
[341020172,1730271039755,-500.0,0.00027671,5]
[341020173,1730271039765,-500.0,0.00027671,5]
[341020174,1730271039775,-500.0,0.00027671,5]
[341020175,1730271039785,-500.0,0.00027671,5]
[341020176,1730271039794,-549.25,0.00027671,5]
[341020177,1730271039805,-521.39153375,0.00027671,5]
[341020178,1730271039814,-500.0,0.00027671,5]
[341020179,1730271039824,-550.09965834,0.00027945,5]
[341020180,1730271039834,-1182.74,0.00027945,3]
[341020181,1730271039844,-500.0,0.00027945,5]
[341020182,1730271039854,-268.85,0.00027945,5]
[341020183,1730271039863,-500.0,0.00027945,5]
[341020184,1730271039873,-500.0,0.00027945,5]
[341020186,1730271039883,-500.0,0.00027945,5]
[341020189,1730271039892,-500.0,0.00027945,5]
[341020192,1730271039904,-500.0,0.00027945,5]
[341020194,1730271039914,-502.37091391,0.00028009,5]
[341020195,1730271039925,-160.09860962,0.00028009,5]
[341020196,1730271039934,-175.324,0.00028042,18]